[Event "Late-Titled-Tuesday-Blitz-June-25-2024"]
[Site "Chess.com"]
[Date "2024.06.25"]
[Round "8"]
[White "Pitomina"]
[Black "mishanick"]
[Result "0-1"]
[WhiteElo "2572"]
[BlackElo "3146"]
[TimeControl "180+1"]
[EndTime "15:27:53 PDT"]
[Termination "mishanick won by resignation"]

1. d4 {[%clk 0:03:00.9]} 1... Nf6 {[%clk 0:03:00.1]} 2. Bf4 {[%clk 0:03:01.2]}
2... d5 {[%clk 0:03:00.5]} 3. e3 {[%clk 0:03:00.1]} 3... c5 {[%clk 0:03:01.1]}
4. c3 {[%clk 0:03:00.2]} 4... Nc6 {[%clk 0:03:00.7]} 5. Nf3 {[%clk 0:02:58.7]}
5... Qb6 {[%clk 0:03:00.6]} 6. Qb3 {[%clk 0:02:58.6]} 6... c4 {[%clk 0:03:00.7]}
7. Qc2 {[%clk 0:02:58.8]} 7... Bf5 {[%clk 0:03:00.8]} 8. Qc1 {[%clk 0:02:59.3]}
8... e6 {[%clk 0:03:00.9]} 9. Nbd2 {[%clk 0:02:59.3]} 9... Nh5 {[%clk 0:03:01]}
10. Bg3 {[%clk 0:02:57.2]} 10... Nxg3 {[%clk 0:03:00.5]} 11. hxg3 {[%clk
0:02:58.1]} 11... Be7 {[%clk 0:03:00]} 12. Be2 {[%clk 0:02:58.6]} 12... O-O
{[%clk 0:03:00.4]} 13. Bd1 {[%clk 0:02:58.9]} 13... Bg6 {[%clk 0:02:58.2]} 14.
Bc2 {[%clk 0:02:58.8]} 14... f5 {[%clk 0:02:58.8]} 15. O-O {[%clk 0:02:46.8]}
15... Qc7 {[%clk 0:02:58.6]} 16. a4 {[%clk 0:02:44.6]} 16... Na5 {[%clk
0:02:56.5]} 17. Nh2 {[%clk 0:02:35.3]} 17... Bd6 {[%clk 0:02:55.9]} 18. Nhf3
{[%clk 0:02:29.8]} 18... Bh5 {[%clk 0:02:55.8]} 19. Bd1 {[%clk 0:02:29.1]} 19...
h6 {[%clk 0:02:52.1]} 20. Be2 {[%clk 0:02:18]} 20... g5 {[%clk 0:02:47.4]} 21.
Qd1 {[%clk 0:02:17.3]} 21... a6 {[%clk 0:02:46.1]} 22. Nh2 {[%clk 0:02:03.8]}
22... Bxe2 {[%clk 0:02:43.7]} 23. Qxe2 {[%clk 0:02:04.7]} 23... g4 {[%clk
0:02:44]} 24. Rfb1 {[%clk 0:01:57.6]} 24... h5 {[%clk 0:02:42.9]} 25. Nhf1
{[%clk 0:01:58.2]} 25... Kg7 {[%clk 0:02:39.9]} 26. b4 {[%clk 0:01:51.7]} 26...
Nc6 {[%clk 0:02:39.5]} 27. b5 {[%clk 0:01:51.2]} 27... Na5 {[%clk 0:02:38]} 28.
Qd1 {[%clk 0:01:43.4]} 28... Rh8 {[%clk 0:02:36.3]} 29. f4 {[%clk 0:01:37.6]}
29... Be7 {[%clk 0:02:26.6]} 30. Ra2 {[%clk 0:01:32.3]} 30... h4 {[%clk
0:02:26.1]} 31. Rab2 {[%clk 0:01:25]} 31... hxg3 {[%clk 0:02:23.3]} 32. Nxg3
{[%clk 0:01:24.4]} 32... Bh4 {[%clk 0:02:24]} 33. Ndf1 {[%clk 0:01:24.2]} 33...
Nb3 {[%clk 0:02:14.9]} 34. Ne2 {[%clk 0:01:23.1]} 34... axb5 {[%clk 0:02:14.1]}
35. axb5 {[%clk 0:01:21.6]} 35... Ra3 {[%clk 0:02:11.2]} 36. Nd2 {[%clk
0:01:20.4]} 36... Nxd2 {[%clk 0:02:06.6]} 37. Qxd2 {[%clk 0:01:21.3]} 37... Rha8
{[%clk 0:02:02.4]} 38. g3 {[%clk 0:01:08.1]} 38... Be7 {[%clk 0:02:02]} 39. Rc1
{[%clk 0:01:08.1]} 39... Kg6 {[%clk 0:02:01.5]} 40. Kg2 {[%clk 0:01:08.2]} 40...
Qa5 {[%clk 0:01:56.1]} 41. Rcc2 {[%clk 0:01:03.9]} 41... Ra1 {[%clk 0:01:55.9]}
42. Rc1 {[%clk 0:01:03.5]} 42... Rxc1 {[%clk 0:01:55.3]} 43. Nxc1 {[%clk
0:01:03.3]} 43... Qa1 {[%clk 0:01:54.8]} 44. Ne2 {[%clk 0:00:59.1]} 44... Rh8
{[%clk 0:01:51.9]} 45. Ng1 {[%clk 0:00:59.3]} 45... Bd6 {[%clk 0:01:30]} 46. Ra2
{[%clk 0:00:58.7]} 46... Qb1 {[%clk 0:01:30.1]} 47. Rb2 {[%clk 0:00:58.4]} 47...
Qe4+ {[%clk 0:01:29.9]} 48. Kf1 {[%clk 0:00:54.5]} 48... Rh1 {[%clk 0:01:20.6]}
49. Qe2 {[%clk 0:00:54]} 49... Ba3 {[%clk 0:01:17.8]} 50. Rc2 {[%clk 0:00:53.4]}
50... Kf6 {[%clk 0:01:16.4]} 51. Qf2 {[%clk 0:00:46.3]} 51... Qd3+ {[%clk
0:01:08.9]} 52. Qe2 {[%clk 0:00:46.3]} 52... Qe4 {[%clk 0:00:59.8]} 53. Qf2
{[%clk 0:00:46.4]} 53... Rh8 {[%clk 0:00:55.8]} 54. Qe2 {[%clk 0:00:43.1]} 54...
Ra8 {[%clk 0:00:51]} 55. Kf2 {[%clk 0:00:40.6]} 55... Qh1 {[%clk 0:00:44.8]} 56.
Ra2 {[%clk 0:00:33.5]} 56... Ra5 {[%clk 0:00:44.4]} 57. Kf1 {[%clk 0:00:31.5]}
57... Rxb5 {[%clk 0:00:42.9]} 58. Qc2 {[%clk 0:00:25.1]} 58... Rb3 {[%clk
0:00:41.3]} 59. Ra1 {[%clk 0:00:21.3]} 59... b5 {[%clk 0:00:41.2]} 60. Rb1
{[%clk 0:00:21.4]} 60... Qe4 {[%clk 0:00:36.5]} 61. Qxe4 {[%clk 0:00:05.9]}
61... fxe4 {[%clk 0:00:37.4]} 62. Ra1 {[%clk 0:00:06]} 62... Rxc3 {[%clk
0:00:37.2]} 63. Ne2 {[%clk 0:00:06.2]} 63... Rxe3 {[%clk 0:00:37.8]} 64. Kf2
{[%clk 0:00:06.4]} 64... Rf3+ {[%clk 0:00:38.1]} 65. Kg2 {[%clk 0:00:06.5]}
65... b4 {[%clk 0:00:38.7]} 66. Rh1 {[%clk 0:00:05.9]} 66... e3 {[%clk
0:00:37.7]} 67. Rh6+ {[%clk 0:00:04.2]} 67... Kg7 {[%clk 0:00:37.9]} 68. Rxe6
{[%clk 0:00:04.3]} 68... Rf2+ {[%clk 0:00:38.5]} 69. Kh1 {[%clk 0:00:03.8]}
69... Rxe2 {[%clk 0:00:39.4]} 70. Rb6 {[%clk 0:00:03.5]} 70... c3 {[%clk
0:00:39.5]} 71. f5 {[%clk 0:00:03.2]} 71... c2 {[%clk 0:00:39.9]} 72. Rb7+
{[%clk 0:00:04.1]} 72... Kf6 {[%clk 0:00:39.9]} 73. Rc7 {[%clk 0:00:03.9]} 73...
c1=Q+ {[%clk 0:00:40]} 74. Rxc1 {[%clk 0:00:04.2]} 74... Bxc1 {[%clk 0:00:40.9]}
0-1

[Event "Late-Titled-Tuesday-Blitz-June-25-2024"]
[Site "Chess.com"]
[Date "2024.06.25"]
[Round "8"]
[White "tptagain"]
[Black "SpeedofLight0"]
[Result "1-0"]
[WhiteElo "3037"]
[BlackElo "3142"]
[TimeControl "180+1"]
[EndTime "15:27:55 PDT"]
[Termination "tptagain won by checkmate"]

1. d4 {[%clk 0:03:00.9]} 1... Nf6 {[%clk 0:02:59.7]} 2. Nf3 {[%clk 0:03:01.2]}
2... d5 {[%clk 0:02:59.8]} 3. e3 {[%clk 0:03:01.2]} 3... e6 {[%clk 0:02:55.6]}
4. Bd3 {[%clk 0:03:00.8]} 4... b6 {[%clk 0:02:55]} 5. O-O {[%clk 0:03:00.5]}
5... Bb7 {[%clk 0:02:55.4]} 6. c4 {[%clk 0:02:59.3]} 6... Nbd7 {[%clk
0:02:51.4]} 7. cxd5 {[%clk 0:02:55.9]} 7... exd5 {[%clk 0:02:52.3]} 8. b3 {[%clk
0:02:55.8]} 8... Bd6 {[%clk 0:02:45.4]} 9. Ba3 {[%clk 0:02:55.4]} 9... c5 {[%clk
0:02:45.8]} 10. Nc3 {[%clk 0:02:54.8]} 10... a6 {[%clk 0:02:45.8]} 11. Rc1
{[%clk 0:02:52.8]} 11... O-O {[%clk 0:02:46.1]} 12. Qe2 {[%clk 0:02:45.9]} 12...
Re8 {[%clk 0:02:44.9]} 13. Rfd1 {[%clk 0:02:44.5]} 13... Qe7 {[%clk 0:02:37.6]}
14. Bf5 {[%clk 0:02:37.9]} 14... Rac8 {[%clk 0:02:31.2]} 15. dxc5 {[%clk
0:02:06.6]} 15... bxc5 {[%clk 0:02:31.3]} 16. Bxd7 {[%clk 0:02:06.7]} 16... Qxd7
{[%clk 0:02:29.9]} 17. Na4 {[%clk 0:02:06.6]} 17... Qe7 {[%clk 0:02:28.9]} 18.
Qd3 {[%clk 0:01:49.3]} 18... h6 {[%clk 0:02:03.3]} 19. h3 {[%clk 0:01:47.5]}
19... Ne4 {[%clk 0:01:49.3]} 20. Bb2 {[%clk 0:01:08.7]} 20... Rcd8 {[%clk
0:01:38]} 21. Nc3 {[%clk 0:01:08.6]} 21... Qe6 {[%clk 0:01:35.5]} 22. Qc2 {[%clk
0:01:01.3]} 22... Ng5 {[%clk 0:01:26.9]} 23. Nxg5 {[%clk 0:00:56.2]} 23... hxg5
{[%clk 0:01:27.8]} 24. Na4 {[%clk 0:00:35.3]} 24... g4 {[%clk 0:00:50.8]} 25.
Nxc5 {[%clk 0:00:23.3]} 25... Bxc5 {[%clk 0:00:48.8]} 26. Qxc5 {[%clk
0:00:24.2]} 26... gxh3 {[%clk 0:00:49.2]} 27. Qc7 {[%clk 0:00:13.8]} 27... Qg4
{[%clk 0:00:45.6]} 28. Qg3 {[%clk 0:00:14.1]} 28... Qxg3 {[%clk 0:00:45.1]} 29.
fxg3 {[%clk 0:00:15]} 29... Rxe3 {[%clk 0:00:45.2]} 30. Rc7 {[%clk 0:00:15]}
30... Rxg3 {[%clk 0:00:41.1]} 31. Rd2 {[%clk 0:00:11]} 31... Ba8 {[%clk
0:00:37.2]} 32. Bd4 {[%clk 0:00:10.6]} 32... Re8 {[%clk 0:00:32.9]} 33. Kh2
{[%clk 0:00:10.4]} 33... Rxg2+ {[%clk 0:00:27.5]} 34. Rxg2 {[%clk 0:00:11.3]}
34... hxg2 {[%clk 0:00:28.4]} 35. Kxg2 {[%clk 0:00:11.9]} 35... f6 {[%clk
0:00:25.3]} 36. Kf3 {[%clk 0:00:11.3]} 36... Re4 {[%clk 0:00:15.7]} 37. Bxf6
{[%clk 0:00:08.1]} 37... gxf6 {[%clk 0:00:16]} 38. Rc8+ {[%clk 0:00:08.6]} 38...
Kf7 {[%clk 0:00:16.6]} 39. Rxa8 {[%clk 0:00:09.5]} 39... Re6 {[%clk 0:00:16.1]}
40. Rd8 {[%clk 0:00:09.9]} 40... Re5 {[%clk 0:00:14]} 41. Ra8 {[%clk 0:00:08.7]}
41... Kg6 {[%clk 0:00:06.1]} 42. Rxa6 {[%clk 0:00:08.6]} 42... Kf5 {[%clk
0:00:06.8]} 43. Rd6 {[%clk 0:00:08]} 43... Kg6 {[%clk 0:00:05.9]} 44. a4 {[%clk
0:00:05.5]} 44... Kf7 {[%clk 0:00:06]} 45. a5 {[%clk 0:00:05.5]} 45... Ke7
{[%clk 0:00:06.7]} 46. Rb6 {[%clk 0:00:05.3]} 46... Rh5 {[%clk 0:00:04.3]} 47.
a6 {[%clk 0:00:04.6]} 47... Rh1 {[%clk 0:00:04.4]} 48. b4 {[%clk 0:00:03.5]}
48... Ra1 {[%clk 0:00:04.9]} 49. b5 {[%clk 0:00:03.9]} 49... Ra4 {[%clk
0:00:05.1]} 50. Rb7+ {[%clk 0:00:04]} 50... Kd6 {[%clk 0:00:05.3]} 51. a7 {[%clk
0:00:04.7]} 51... Ke5 {[%clk 0:00:03.8]} 52. b6 {[%clk 0:00:05.1]} 52... Ra3+
{[%clk 0:00:04.5]} 53. Kf2 {[%clk 0:00:04.8]} 53... Kd4 {[%clk 0:00:05.4]} 54.
Rb8 {[%clk 0:00:05.2]} 54... Ra2+ {[%clk 0:00:05.5]} 55. Kf3 {[%clk 0:00:05.3]}
55... Ra3+ {[%clk 0:00:06.4]} 56. Kf4 {[%clk 0:00:05.4]} 56... Ra1 {[%clk
0:00:06.8]} 57. a8=Q {[%clk 0:00:05.9]} 57... Rf1+ {[%clk 0:00:07.7]} 58. Kg3
{[%clk 0:00:05.1]} 58... Rg1+ {[%clk 0:00:08.6]} 59. Kf2 {[%clk 0:00:04.8]}
59... Rg5 {[%clk 0:00:09.5]} 60. Qa4+ {[%clk 0:00:04.8]} 60... Ke5 {[%clk
0:00:10.4]} 61. Re8+ {[%clk 0:00:04.6]} 61... Kd6 {[%clk 0:00:11.2]} 62. Qb4+
{[%clk 0:00:05]} 62... Kc6 {[%clk 0:00:11.9]} 63. b7 {[%clk 0:00:05]} 63... Rf5+
{[%clk 0:00:12.1]} 64. Kg3 {[%clk 0:00:05.5]} 64... d4 {[%clk 0:00:13]} 65. Re6+
{[%clk 0:00:05.1]} 65... Kd5 {[%clk 0:00:13.4]} 66. Rd6+ {[%clk 0:00:04.7]}
66... Ke4 {[%clk 0:00:13.8]} 67. Qxd4# {[%clk 0:00:05.3]} 1-0

[Event "Late-Titled-Tuesday-Blitz-June-25-2024"]
[Site "Chess.com"]
[Date "2024.06.25"]
[Round "8"]
[White "patzer-reloaded"]
[Black "andrew-blr"]
[Result "1/2-1/2"]
[WhiteElo "2425"]
[BlackElo "2603"]
[TimeControl "180+1"]
[EndTime "15:27:55 PDT"]
[Termination "Game drawn - insufficient material"]

1. d4 {[%clk 0:03:00.9]} 1... Nf6 {[%clk 0:02:59.1]} 2. c4 {[%clk 0:02:59.8]}
2... g6 {[%clk 0:02:59]} 3. Nc3 {[%clk 0:02:59.9]} 3... Bg7 {[%clk 0:02:58.7]}
4. e4 {[%clk 0:03:00.1]} 4... O-O {[%clk 0:02:58.4]} 5. Nf3 {[%clk 0:02:58.4]}
5... d6 {[%clk 0:02:58.3]} 6. Be2 {[%clk 0:02:53.6]} 6... Nc6 {[%clk 0:02:45.4]}
7. d5 {[%clk 0:02:51.3]} 7... Ne5 {[%clk 0:02:43.4]} 8. Nxe5 {[%clk 0:02:50.9]}
8... dxe5 {[%clk 0:02:44.3]} 9. Be3 {[%clk 0:02:46.2]} 9... Ne8 {[%clk
0:02:31.7]} 10. O-O {[%clk 0:02:43]} 10... f5 {[%clk 0:02:31.4]} 11. f3 {[%clk
0:02:41.6]} 11... Nd6 {[%clk 0:02:28]} 12. c5 {[%clk 0:02:39.8]} 12... Nf7
{[%clk 0:02:28]} 13. Qb3 {[%clk 0:02:09.1]} 13... Kh8 {[%clk 0:02:19.6]} 14. Bc4
{[%clk 0:02:07.9]} 14... f4 {[%clk 0:02:04.2]} 15. Bf2 {[%clk 0:02:06.4]} 15...
Nh6 {[%clk 0:02:02.1]} 16. Rfd1 {[%clk 0:01:55.9]} 16... g5 {[%clk 0:02:02]} 17.
h3 {[%clk 0:01:55.6]} 17... Qe8 {[%clk 0:01:59.3]} 18. d6 {[%clk 0:01:54.3]}
18... exd6 {[%clk 0:01:57.9]} 19. cxd6 {[%clk 0:01:53.9]} 19... c6 {[%clk
0:01:58.3]} 20. d7 {[%clk 0:01:42]} 20... Bxd7 {[%clk 0:01:55.5]} 21. Qxb7
{[%clk 0:01:41.8]} 21... Be6 {[%clk 0:01:20.3]} 22. Bxe6 {[%clk 0:01:40.4]}
22... Qxe6 {[%clk 0:01:20.1]} 23. Rd7 {[%clk 0:01:38.6]} 23... Rfb8 {[%clk
0:01:09.1]} 24. Qc7 {[%clk 0:01:36.4]} 24... Rc8 {[%clk 0:01:09]} 25. Qd6 {[%clk
0:01:35.5]} 25... Qxd6 {[%clk 0:01:03.5]} 26. Rxd6 {[%clk 0:01:35]} 26... Rc7
{[%clk 0:00:55.6]} 27. Rad1 {[%clk 0:01:31]} 27... Nf7 {[%clk 0:00:55]} 28. Rd7
{[%clk 0:01:27.7]} 28... Rac8 {[%clk 0:00:54.6]} 29. Bxa7 {[%clk 0:01:25.8]}
29... Bf8 {[%clk 0:00:53.7]} 30. Bf2 {[%clk 0:01:14]} 30... h5 {[%clk 0:00:51]}
31. Na4 {[%clk 0:01:10.8]} 31... g4 {[%clk 0:00:48.1]} 32. hxg4 {[%clk
0:01:04.2]} 32... hxg4 {[%clk 0:00:49]} 33. fxg4 {[%clk 0:00:41.4]} 33... Ng5
{[%clk 0:00:44.5]} 34. Nc5 {[%clk 0:00:38.7]} 34... Bxc5 {[%clk 0:00:37.1]} 35.
Bxc5 {[%clk 0:00:37]} 35... Nxe4 {[%clk 0:00:37.8]} 36. Rxc7 {[%clk 0:00:25.3]}
36... Rxc7 {[%clk 0:00:37.3]} 37. Bd6 {[%clk 0:00:25.6]} 37... Nxd6 {[%clk
0:00:25.2]} 38. Rxd6 {[%clk 0:00:26.5]} 38... e4 {[%clk 0:00:24.2]} 39. Re6
{[%clk 0:00:26.1]} 39... e3 {[%clk 0:00:24]} 40. g3 {[%clk 0:00:26]} 40... Rg7
{[%clk 0:00:20.7]} 41. gxf4 {[%clk 0:00:20.7]} 41... Rxg4+ {[%clk 0:00:20.7]}
42. Kf1 {[%clk 0:00:19.8]} 42... Rxf4+ {[%clk 0:00:20.7]} 43. Ke1 {[%clk
0:00:19.9]} 43... Rf2 {[%clk 0:00:20.3]} 44. Re8+ {[%clk 0:00:09]} 44... Kg7
{[%clk 0:00:19.8]} 45. Rb8 {[%clk 0:00:09.9]} 45... Kf6 {[%clk 0:00:18]} 46. a4
{[%clk 0:00:10.5]} 46... Ke5 {[%clk 0:00:17.6]} 47. a5 {[%clk 0:00:10.8]} 47...
Kd4 {[%clk 0:00:16.3]} 48. a6 {[%clk 0:00:10.7]} 48... Rf7 {[%clk 0:00:14.5]}
49. Rb7 {[%clk 0:00:08.2]} 49... Rf8 {[%clk 0:00:11.1]} 50. a7 {[%clk
0:00:07.7]} 50... Ra8 {[%clk 0:00:09.9]} 51. Ke2 {[%clk 0:00:07.5]} 51... c5
{[%clk 0:00:08.6]} 52. b3 {[%clk 0:00:05.3]} 52... Kd5 {[%clk 0:00:06.5]} 53.
Kxe3 {[%clk 0:00:04.6]} 53... Kc6 {[%clk 0:00:06.9]} 54. Rh7 {[%clk 0:00:04.3]}
54... Kb6 {[%clk 0:00:05.8]} 55. Kd3 {[%clk 0:00:04.5]} 55... Rxa7 {[%clk
0:00:05.7]} 56. Rxa7 {[%clk 0:00:02.9]} 56... Kxa7 {[%clk 0:00:06.6]} 57. Kc4
{[%clk 0:00:03.2]} 57... Kb6 {[%clk 0:00:07]} 58. b4 {[%clk 0:00:03.6]} 58...
cxb4 {[%clk 0:00:07.4]} 59. Kxb4 {[%clk 0:00:03.8]} 1/2-1/2

[Event "Late-Titled-Tuesday-Blitz-June-25-2024"]
[Site "Chess.com"]
[Date "2024.06.25"]
[Round "8"]
[White "Gzucaritas"]
[Black "AlejandroArias"]
[Result "0-1"]
[WhiteElo "2035"]
[BlackElo "2355"]
[TimeControl "180+1"]
[EndTime "15:27:57 PDT"]
[Termination "AlejandroArias won on time"]

1. e4 {[%clk 0:03:00.9]} 1... c5 {[%clk 0:02:59.7]} 2. Nf3 {[%clk 0:03:00.1]}
2... g6 {[%clk 0:02:59.2]} 3. c3 {[%clk 0:02:58.6]} 3... Bg7 {[%clk 0:02:56.6]}
4. d4 {[%clk 0:02:58.4]} 4... cxd4 {[%clk 0:02:56.1]} 5. cxd4 {[%clk 0:02:58.3]}
5... d5 {[%clk 0:02:56.4]} 6. e5 {[%clk 0:02:53.1]} 6... Nc6 {[%clk 0:02:56.3]}
7. Nc3 {[%clk 0:02:50.7]} 7... Bg4 {[%clk 0:02:54.9]} 8. Be2 {[%clk 0:02:49.9]}
8... e6 {[%clk 0:02:49.4]} 9. h3 {[%clk 0:02:49.6]} 9... Bxf3 {[%clk 0:02:49]}
10. Bxf3 {[%clk 0:02:49.7]} 10... Nge7 {[%clk 0:02:49.6]} 11. O-O {[%clk
0:02:36.6]} 11... O-O {[%clk 0:02:49.3]} 12. Bg5 {[%clk 0:02:34.2]} 12... h6
{[%clk 0:02:45.8]} 13. Be3 {[%clk 0:02:18.1]} 13... Nf5 {[%clk 0:02:45.7]} 14.
Nb5 {[%clk 0:02:15.3]} 14... a6 {[%clk 0:02:41.7]} 15. Nc3 {[%clk 0:02:07.6]}
15... f6 {[%clk 0:02:41.5]} 16. exf6 {[%clk 0:01:51.4]} 16... Qxf6 {[%clk
0:02:42.4]} 17. Ne2 {[%clk 0:01:48.1]} 17... Nfxd4 {[%clk 0:02:30.5]} 18. Nxd4
{[%clk 0:01:43.8]} 18... Nxd4 {[%clk 0:02:30.1]} 19. Bg4 {[%clk 0:01:43.7]}
19... Nf5 {[%clk 0:02:23.4]} 20. Bc5 {[%clk 0:01:39.6]} 20... Rfe8 {[%clk
0:02:17.6]} 21. Qb3 {[%clk 0:01:33.7]} 21... b5 {[%clk 0:01:55.7]} 22. Ba3
{[%clk 0:01:20.6]} 22... Nd4 {[%clk 0:01:46.2]} 23. Qb4 {[%clk 0:01:10.8]} 23...
Nc2 {[%clk 0:01:31]} 24. Qd6 {[%clk 0:01:05.9]} 24... Nxa1 {[%clk 0:01:21.7]}
25. Rxa1 {[%clk 0:01:06.1]} 25... Bf8 {[%clk 0:01:16.6]} 26. Qg3 {[%clk
0:00:53.5]} 26... Bxa3 {[%clk 0:01:15.9]} 27. Qxa3 {[%clk 0:00:53.2]} 27... h5
{[%clk 0:01:16.3]} 28. Bf3 {[%clk 0:00:52.9]} 28... Kg7 {[%clk 0:01:15.7]} 29.
Rc1 {[%clk 0:00:50.6]} 29... Rac8 {[%clk 0:01:01.4]} 30. Re1 {[%clk 0:00:48.6]}
30... Rc6 {[%clk 0:00:58]} 31. Bxd5 {[%clk 0:00:40.1]} 31... Rc2 {[%clk
0:00:41.5]} 32. Bf3 {[%clk 0:00:37.9]} 32... Qd4 {[%clk 0:00:31.3]} 33. Rf1
{[%clk 0:00:33.6]} 33... e5 {[%clk 0:00:27.6]} 34. Qxa6 {[%clk 0:00:28.5]} 34...
e4 {[%clk 0:00:25.9]} 35. Qb7+ {[%clk 0:00:23.2]} 35... Kh6 {[%clk 0:00:25.4]}
36. Bd1 {[%clk 0:00:19.5]} 36... Rd2 {[%clk 0:00:24.9]} 37. Bb3 {[%clk
0:00:18.7]} 37... Rf8 {[%clk 0:00:20]} 38. Qe7 {[%clk 0:00:15.4]} 38... Rdxf2
{[%clk 0:00:01.2]} 39. Rxf2 {[%clk 0:00:09.8]} 39... Qxf2+ {[%clk 0:00:02.1]}
40. Kh1 {[%clk 0:00:08.8]} 40... Qf1+ {[%clk 0:00:02.5]} 41. Kh2 {[%clk
0:00:09]} 41... Qf4+ {[%clk 0:00:03.3]} 42. Kh1 {[%clk 0:00:09.4]} 42... Qf1+
{[%clk 0:00:02.7]} 43. Kh2 {[%clk 0:00:09.7]} 43... Qf4+ {[%clk 0:00:02.5]} 44.
Kh1 {[%clk 0:00:09.9]} 44... e3 {[%clk 0:00:03.4]} 45. Qe6 {[%clk 0:00:03.4]}
45... Qf1+ {[%clk 0:00:03]} 46. Kh2 {[%clk 0:00:03.6]} 46... Qf4+ {[%clk
0:00:03.9]} 47. Kh1 {[%clk 0:00:03.7]} 47... Qf1+ {[%clk 0:00:03.5]} 48. Kh2
{[%clk 0:00:03.9]} 48... e2 {[%clk 0:00:04.4]} 49. Qe3+ {[%clk 0:00:03.4]} 49...
Kh7 {[%clk 0:00:02.1]} 50. Qe7+ {[%clk 0:00:03.1]} 50... Kh6 {[%clk 0:00:01.4]}
51. Qe3+ {[%clk 0:00:02.9]} 51... Rf4 {[%clk 0:00:01.6]} 0-1

[Event "Late-Titled-Tuesday-Blitz-June-25-2024"]
[Site "Chess.com"]
[Date "2024.06.25"]
[Round "8"]
[White "Dexter_Dyke"]
[Black "AlphaPerseii"]
[Result "0-1"]
[WhiteElo "2489"]
[BlackElo "2400"]
[TimeControl "180+1"]
[EndTime "15:28:17 PDT"]
[Termination "AlphaPerseii won by checkmate"]

1. e4 {[%clk 0:03:00.9]} 1... c5 {[%clk 0:02:58.7]} 2. Nf3 {[%clk 0:03:00.8]}
2... Nc6 {[%clk 0:02:59]} 3. d4 {[%clk 0:03:01.3]} 3... cxd4 {[%clk 0:02:59.9]}
4. c3 {[%clk 0:03:02.1]} 4... Nf6 {[%clk 0:02:57.8]} 5. e5 {[%clk 0:03:01.8]}
5... Nd5 {[%clk 0:02:58.2]} 6. Bc4 {[%clk 0:03:02.3]} 6... Nb6 {[%clk 0:02:57]}
7. Bb3 {[%clk 0:03:02.7]} 7... d5 {[%clk 0:02:55.1]} 8. exd6 {[%clk 0:03:02.8]}
8... Qxd6 {[%clk 0:02:55.3]} 9. O-O {[%clk 0:03:02.1]} 9... Be6 {[%clk
0:02:55.6]} 10. Bxe6 {[%clk 0:03:01]} 10... Qxe6 {[%clk 0:02:56.5]} 11. Re1
{[%clk 0:03:01.6]} 11... Qd7 {[%clk 0:02:56.2]} 12. cxd4 {[%clk 0:03:01.4]}
12... e6 {[%clk 0:02:55.5]} 13. Nc3 {[%clk 0:03:01.2]} 13... Be7 {[%clk
0:02:52.4]} 14. a4 {[%clk 0:02:59.4]} 14... O-O {[%clk 0:02:35.8]} 15. a5 {[%clk
0:02:58.9]} 15... Nd5 {[%clk 0:02:26.5]} 16. a6 {[%clk 0:02:59.1]} 16... Rfd8
{[%clk 0:02:16.1]} 17. Nb5 {[%clk 0:02:56.9]} 17... bxa6 {[%clk 0:02:04.7]} 18.
Rxa6 {[%clk 0:02:57.8]} 18... Qb7 {[%clk 0:01:50.6]} 19. Qa4 {[%clk 0:02:56.5]}
19... Ndb4 {[%clk 0:01:48.2]} 20. Rxc6 {[%clk 0:02:52.1]} 20... Qxc6 {[%clk
0:01:29.2]} 21. Ne5 {[%clk 0:02:40]} 21... Qe8 {[%clk 0:01:27.9]} 22. Qa5 {[%clk
0:02:24.5]} 22... Rd5 {[%clk 0:01:20.3]} 23. Nc7 {[%clk 0:01:54.1]} 23... Rxa5
{[%clk 0:01:19.9]} 24. Nxe8 {[%clk 0:01:54.6]} 24... Rxe8 {[%clk 0:01:20.1]} 25.
Bd2 {[%clk 0:01:54.6]} 25... Rd5 {[%clk 0:01:17.3]} 26. Bc3 {[%clk 0:01:52.9]}
26... f6 {[%clk 0:01:05.8]} 27. Nc4 {[%clk 0:01:42]} 27... Kf7 {[%clk
0:01:02.5]} 28. Ne3 {[%clk 0:01:41.9]} 28... Rb5 {[%clk 0:00:59.1]} 29. Ra1
{[%clk 0:01:39.9]} 29... Rb7 {[%clk 0:00:55.7]} 30. f4 {[%clk 0:01:36.3]} 30...
Nd5 {[%clk 0:00:55.5]} 31. Nc4 {[%clk 0:01:29.7]} 31... Rc8 {[%clk 0:00:52.9]}
32. Na5 {[%clk 0:01:28.6]} 32... Rd7 {[%clk 0:00:51.1]} 33. Bd2 {[%clk
0:01:28.3]} 33... Bb4 {[%clk 0:00:48.9]} 34. Bxb4 {[%clk 0:01:27.7]} 34... Nxb4
{[%clk 0:00:49.8]} 35. b3 {[%clk 0:01:23.1]} 35... Rxd4 {[%clk 0:00:44.5]} 36.
Nc4 {[%clk 0:01:20.9]} 36... Rc7 {[%clk 0:00:39.4]} 37. g3 {[%clk 0:01:20.7]}
37... h5 {[%clk 0:00:36]} 38. Ra4 {[%clk 0:01:12]} 38... Rd1+ {[%clk 0:00:30.2]}
39. Kg2 {[%clk 0:01:09.2]} 39... Nc6 {[%clk 0:00:26.1]} 40. Ra6 {[%clk 0:00:59]}
40... Rd3 {[%clk 0:00:20.4]} 41. Ra3 {[%clk 0:00:50.6]} 41... Nd4 {[%clk
0:00:16.6]} 42. Nd6+ {[%clk 0:00:47.7]} 42... Kg6 {[%clk 0:00:17.1]} 43. Ne8
{[%clk 0:00:47.1]} 43... Rxb3 {[%clk 0:00:16.4]} 44. Rxb3 {[%clk 0:00:43.9]}
44... Nxb3 {[%clk 0:00:17.3]} 45. Nxc7 {[%clk 0:00:44.6]} 45... a5 {[%clk
0:00:16.6]} 46. Kf3 {[%clk 0:00:36.9]} 46... Kf5 {[%clk 0:00:15.9]} 47. Ke3
{[%clk 0:00:35.9]} 47... g5 {[%clk 0:00:13.7]} 48. fxg5 {[%clk 0:00:35.6]} 48...
fxg5 {[%clk 0:00:14.6]} 49. Nb5 {[%clk 0:00:36]} 49... Kg4 {[%clk 0:00:11.3]}
50. Kf2 {[%clk 0:00:31.3]} 50... Kh3 {[%clk 0:00:11]} 51. Kg1 {[%clk 0:00:31.6]}
51... a4 {[%clk 0:00:10.6]} 52. Na3 {[%clk 0:00:31.5]} 52... Nd2 {[%clk
0:00:09.9]} 53. Nc2 {[%clk 0:00:28.6]} 53... Nf3+ {[%clk 0:00:10]} 54. Kf2
{[%clk 0:00:29.1]} 54... Nxh2 {[%clk 0:00:10.3]} 55. Nd4 {[%clk 0:00:26.3]}
55... Ng4+ {[%clk 0:00:10.4]} 56. Kf3 {[%clk 0:00:26.8]} 56... Ne5+ {[%clk
0:00:10.7]} 57. Ke3 {[%clk 0:00:26.8]} 57... Kxg3 {[%clk 0:00:10.2]} 58. Nxe6
{[%clk 0:00:26.9]} 58... g4 {[%clk 0:00:09.4]} 59. Ke4 {[%clk 0:00:27.1]} 59...
Nf3 {[%clk 0:00:09.4]} 60. Ng7 {[%clk 0:00:23.8]} 60... a3 {[%clk 0:00:08.3]}
61. Nxh5+ {[%clk 0:00:22.5]} 61... Kf2 {[%clk 0:00:08.8]} 62. Nf4 {[%clk
0:00:20.2]} 62... a2 {[%clk 0:00:09.1]} 63. Nd3+ {[%clk 0:00:20.8]} 63... Kf1
{[%clk 0:00:08.6]} 64. Kf4 {[%clk 0:00:13.9]} 64... a1=Q {[%clk 0:00:08.7]} 65.
Kxg4 {[%clk 0:00:14.7]} 65... Ne5+ {[%clk 0:00:09.1]} 66. Nxe5 {[%clk
0:00:14.3]} 66... Qxe5 {[%clk 0:00:10]} 67. Kf3 {[%clk 0:00:15.2]} 67... Qd4
{[%clk 0:00:09.3]} 68. Kg3 {[%clk 0:00:15.1]} 68... Ke2 {[%clk 0:00:09.3]} 69.
Kh3 {[%clk 0:00:12.5]} 69... Kf2 {[%clk 0:00:09.8]} 70. Kh2 {[%clk 0:00:13.4]}
70... Qh4# {[%clk 0:00:10.3]} 0-1